bitfinex/quotes_SOLUSD_20250929
["timestamp","ask_amount","ask_price","bid_price","bid_amount"]
[1759150384989,26.0,206.39,206.36,112.42289256]
[1759150385190,26.0,206.4,206.36,112.42289256]
[1759150385407,26.0,206.4,206.36,112.20289256]
[1759150385718,26.0,206.4,206.37,0.22]
[1759150386294,4.84450014,206.42,206.36,117.04863701]
[1759150387017,30.84421344,206.44,206.37,0.22]
[1759150387202,4.84381067,206.45,206.37,0.22]
[1759150387815,1.44145711,206.43,206.36,112.20289256]
[1759150388395,2.25828224,206.43,206.36,112.20289256]
[1759150388597,26.0,206.42,206.36,112.20289256]
[1759150388811,2.25828224,206.4,206.36,112.20289256]
[1759150389024,4.84543075,206.38,206.36,112.20289256]
[1759150389233,5.53543075,206.38,206.36,112.20289256]
[1759150389405,28.94828224,206.37,206.36,1e-08]
[1759150389714,15.06152254,206.37,206.36,1e-08]
[1759150390093,41.06152254,206.37,206.36,1e-08]
[1759150390316,26.0,206.3,206.16,34.23887052]
[1759150390516,26.0,206.3,206.17,38.44]
[1759150390718,28.25828224,206.3,206.18,0.42]
[1759150391016,4.84824978,206.26,206.19,38.2]
[1759150391212,26.0,206.23,206.16,32.73887052]
[1759150391419,20.0,206.34,206.16,32.73887052]
[1759150391420,0.69,206.25,206.16,70.95887052]
[1759150391724,26.0,206.24,206.16,70.95887052]
[1759150391929,26.0,206.27,206.16,87.93596474]
[1759150392098,26.0,206.28,206.17,13.59559401]
[1759150392291,26.0,206.28,206.19,13.59559401]
[1759150392615,26.0,206.28,206.17,13.59559401]
[1759150392841,2.25828224,206.27,206.17,13.59559401]
[1759150393015,2.25828224,206.27,206.18,38.3]
[1759150393218,26.70217498,206.34,206.18,38.3]
[1759150393219,14.58611888,206.34,206.19,30.57022904]
[1759150393424,0.69,206.37,206.19,30.57022904]
[1759150393425,2.25828224,206.36,206.19,30.57022904]
[1759150393796,2.25828224,206.36,206.23,13.59559401]
[1759150393996,2.25828224,206.33,206.2,13.59559401]
[1759150394225,2.25828224,206.33,206.21,38.34]
[1759150394226,2.25828224,206.3,206.21,38.34]
[1759150394400,26.69,206.33,206.21,38.34]
[1759150394598,2.25828224,206.32,206.22,13.59559401]
[1759150394996,2.25828224,206.35,206.22,13.59559401]
[1759150395196,2.25828224,206.35,206.24,13.59559401]
[1759150395406,7.10441749,206.35,206.24,92.89559401]
[1759150395721,28.25828224,206.35,206.24,92.89559401]
[1759150395910,33.10442848,206.35,206.25,38.36]
[1759150396298,33.10442848,206.35,206.26,38.36]
[1759150396706,33.10442848,206.35,206.24,92.89559401]
[1759150396906,28.25828224,206.32,206.25,38.36]
[1759150397107,4.84707479,206.31,206.26,38.36]
[1759150397405,2.25828224,206.32,206.26,38.36]
[1759150397916,2.25828224,206.32,206.24,84.14861435]
[1759150397917,2.25828224,206.32,206.27,38.36]
[1759150398122,7.79512934,206.32,206.28,38.36]
[1759150398321,0.69,206.31,206.28,38.36]
[1759150398905,0.69,206.3,206.28,38.36]
[1759150399105,4.84777971,206.28,206.27,38.36]
[1759150399305,4.84777971,206.28,206.19,16.97423196]
[1759150399529,5.53777971,206.28,206.2,38.36]
[1759150399721,0.69,206.29,206.2,38.36]
[1759150400519,0.69,206.29,206.2,117.66]
[1759150400722,16.96561433,206.3,206.2,117.66]
[1759150400925,0.69,206.28,206.2,117.66]
[1759150401121,0.69,206.28,206.21,4.84942534]
[1759150401639,4.84755723,206.29,206.21,4.84942534]
[1759150402015,0.69,206.33,206.21,16.97298869]
[1759150402223,0.69,206.33,206.21,96.27298869]
[1759150402427,5.53660495,206.33,206.21,96.27298869]
[1759150403019,12.11533801,206.35,206.21,84.14942534]
[1759150403221,4.84660495,206.33,206.22,38.34]
[1759150403841,0.69,206.37,206.23,13.59559401]
[1759150404016,5.53566555,206.37,206.23,15.85387625]
[1759150404216,5.53566555,206.37,206.23,13.59559401]
[1759150404531,4.8453691,206.39,206.23,15.85387625]
[1759150404721,5.5353691,206.39,206.23,95.15387625]
[1759150404922,26.0,206.37,206.23,95.15387625]
[1759150405236,16.96147321,206.35,206.24,43.22849888]
[1759150405423,0.69,206.34,206.25,38.38]
[1759150406218,4.84660495,206.33,206.25,43.22829191]
[1759150406423,4.84625527,206.35,206.25,43.22829191]
[1759150406741,4.84625527,206.35,206.26,38.38]
[1759150407434,30.84625527,206.35,206.26,38.38]
[1759150408020,0.69,206.34,206.27,38.36]
[1759150408421,4.84660495,206.33,206.27,257.20790577]
[1759150408627,4.84660495,206.33,206.27,79.3]
[1759150408941,4.84660495,206.33,206.28,38.36]
[1759150410035,0.69,206.32,206.27,79.3]
[1759150410235,4.84660495,206.33,206.27,79.3]
[1759150410424,4.84730974,206.3,206.28,38.34]
[1759150410831,26.0,206.28,206.17,4.85016931]
[1759150411146,0.69,206.29,206.18,38.34]
[1759150412146,4.84777971,206.28,206.19,4.84989572]
[1759150412354,16.967229,206.28,206.19,4.84989572]
[1759150413840,4.84824978,206.26,206.2,38.36]
[1759150415652,0.69,206.27,206.17,16.9762817]
[1759150415852,5.53813847,206.27,206.18,38.32]
[1759150416032,5.53813847,206.27,206.18,117.62]
[1759150416231,26.0,206.3,206.19,13.59559401]
[1759150416445,30.84733604,206.3,206.19,13.59559401]
[1759150416857,5.53712438,206.31,206.19,13.59559401]
[1759150417150,2.94828224,206.35,206.19,227.59559401]
[1759150417531,2.25828224,206.35,206.19,227.59559401]
[1759150417730,26.0,206.34,206.2,16.97381182]
[1759150417954,4.8463812,206.34,206.2,16.97381182]
[1759150418164,17.65230637,206.34,206.2,16.97381182]
[1759150418534,30.8463812,206.34,206.22,13.59559401]
[1759150419140,4.84595242,206.36,206.22,227.59559401]
[1759150419437,4.84543075,206.38,206.24,13.59559401]
[1759150419653,4.84543075,206.38,206.25,38.36]
[1759150419837,4.84543075,206.38,206.27,13.59559401]
[1759150420558,2.25828224,206.31,206.15,20.0]
[1759150420736,0.69,206.34,206.18,13.59559401]
[1759150421132,28.25828224,206.35,206.18,13.59559401]
[1759150421133,28.25828224,206.35,206.21,39.59559401]
[1759150421439,26.0,206.35,206.22,38.78]
[1759150421657,2.25978251,206.31,206.23,38.8]
[1759150421848,4.84730974,206.3,206.23,38.8]
[1759150422057,2.25978251,206.31,206.23,43.648794]
[1759150422258,4.84716839,206.31,206.23,43.648794]
[1759150422652,12.11333353,206.39,206.24,13.59559401]
[1759150422877,0.69,206.37,206.24,13.59559401]
[1759150423136,0.69,206.36,206.24,13.59559401]
[1759150423856,0.69,206.36,206.25,16.96969696]
[1759150423857,4.8461352,206.35,206.25,16.96969696]
[1759150425061,17.65147321,206.35,206.25,16.96969696]
[1759150425246,0.69,206.34,206.25,16.96969696]
[1759150425445,0.69,206.34,206.26,38.82]
[1759150425871,19.22125572,206.35,206.27,4.84801473]
[1759150426050,4.8461352,206.35,206.27,4.84801473]
[1759150426242,4.8461352,206.35,206.28,38.82]
[1759150426559,0.69,206.34,206.28,38.82]
[1759150426948,33.79524283,206.38,206.28,38.82]
[1759150427152,0.69,206.37,206.29,38.82]
[1759150427355,2.25978251,206.35,206.29,38.82]
[1759150427554,0.69,206.34,206.29,38.82]
[1759150427943,5.53640619,206.34,206.29,38.82]
[1759150428146,5.53640619,206.34,206.3,38.82]
[1759150428349,5.53640619,206.34,206.31,38.82]
[1759150428549,0.69,206.33,206.31,38.82]
[1759150429249,26.0,206.34,206.31,38.82]
[1759150429448,5.53607158,206.36,206.31,38.82]
[1759150429649,0.69,206.35,206.31,38.82]
[1759150429862,26.0,206.4,206.25,12.12121212]
[1759150430073,0.69,206.34,206.26,50.92062445]
[1759150430273,2.94978251,206.33,206.26,38.8]
[1759150430487,0.69,206.32,206.26,38.8]
[1759150430775,0.69,206.31,206.26,38.8]
[1759150430973,0.69,206.3,206.26,38.8]
[1759150431150,0.69,206.3,206.16,32.73887052]
[1759150431151,0.66,206.29,206.16,32.73887052]
[1759150431475,0.66,206.28,206.17,39.04]
[1759150431869,16.9664065,206.29,206.18,4.85013095]
[1759150432184,0.66,206.27,206.18,4.85013095]
[1759150432353,0.66,206.27,206.18,16.97545833]
[1759150432554,31.50754471,206.29,206.18,16.97545833]
[1759150432778,31.50754471,206.29,206.19,13.59559401]
[1759150433253,30.84754471,206.29,206.19,13.59559401]
[1759150433781,4.84732022,206.3,206.19,13.59559401]
[1759150433952,4.84732022,206.3,206.2,16.97381182]
[1759150433953,30.84732022,206.3,206.2,16.97381182]
[1759150434152,4.84732022,206.3,206.2,16.97381182]
[1759150434484,5.50708859,206.31,206.2,16.97381182]
[1759150434780,5.50708859,206.31,206.21,13.59559401]
[1759150434975,5.50708859,206.31,206.22,39.04]
[1759150435278,5.50708859,206.31,206.21,13.59559401]
[1759150435279,0.66,206.3,206.23,39.04]
[1759150435677,16.96477556,206.31,206.23,39.04]
[1759150435981,4.84777971,206.28,206.23,39.04]
[1759150436177,4.84777971,206.28,206.22,4.84913347]
[1759150436484,4.84777971,206.28,206.24,39.02]
[1759150436667,4.84777971,206.28,206.24,118.32]
[1759150436866,4.84777971,206.28,206.25,39.02]
[1759150437067,0.66,206.28,206.25,39.02]
[1759150437383,16.96476176,206.31,206.22,4.84913347]
[1759150437584,0.66,206.28,206.23,39.0]
[1759150437788,5.50707479,206.31,206.23,39.0]
[1759150438759,0.66,206.31,206.23,39.0]
[1759150438961,0.66,206.31,206.24,4.84871993]
[1759150439357,0.66,206.3,206.17,4.8503662]
[1759150439574,0.66,206.3,206.19,13.59559401]
[1759150439773,0.66,206.29,206.19,13.59559401]
[1759150440165,26.66,206.29,206.17,16.9762817]
[1759150440375,4.84801473,206.27,206.16,32.73887052]
[1759150440581,0.66,206.26,206.17,43.9303662]
[1759150441757,4.84848484,206.25,206.17,43.9303662]
[1759150443674,16.96805157,206.27,206.16,37.58943726]
[1759150443977,0.66,206.24,206.17,39.06]
[1759150445188,16.96805157,206.27,206.17,39.06]
[1759150445387,0.66,206.26,206.17,39.06]
[1759150446062,0.66,206.3,206.26,79.3]
[1759150446287,0.66,206.29,206.19,227.59559401]
[1759150446580,0.66,206.29,206.21,13.59559401]
[1759150446783,4.84731666,206.3,206.21,13.59559401]
[1759150447086,24.22961663,206.36,206.22,52.73559401]
[1759150447087,3.8940024,206.34,206.22,52.73559401]
[1759150447264,0.66,206.33,206.22,266.73559401]
[1759150447858,4.84683986,206.32,206.23,4.84895505]
[1759150448580,4.84683986,206.32,206.23,79.3]
[1759150448581,28.25978251,206.29,206.23,79.3]
[1759150448881,26.66,206.28,206.22,118.44]
[1759150449073,0.66,206.28,206.22,118.44]
[1759150449270,26.66,206.28,206.22,118.44]
[1759150450173,16.96805157,206.27,206.22,118.44]
[1759150450378,0.66,206.26,206.16,32.73887052]
[1759150450577,0.66,206.25,206.17,39.2]
[1759150451868,4.84871993,206.24,206.17,44.05027759]
[1759150452963,4.84824978,206.26,206.17,44.05027759]
[1759150453283,16.96887423,206.26,206.17,44.05027759]
[1759150453486,17.65887423,206.26,206.17,44.05027759]
[1759150453685,6.2954678,206.28,206.17,270.17619309]
[1759150453862,1.44746557,206.22,206.16,32.73887052]
[1759150454061,1.44746557,206.22,206.17,39.2]
[1759150454062,0.69,206.21,206.17,39.2]
[1759150454386,0.69,206.2,206.17,39.2]
[1759150454576,0.69,206.19,206.17,39.2]
[1759150454775,0.69,206.21,206.17,39.2]
[1759150454975,4.84989572,206.19,206.17,39.2]
[1759150455174,5.53989572,206.19,206.17,39.2]
[1759150455582,4.84989572,206.19,206.17,39.2]
[1759150456291,0.69,206.18,206.17,39.2]
[1759150456468,0.69,206.18,206.17,39.26]
[1759150456665,6.29736129,206.19,206.17,39.26]
[1759150456884,6.98736129,206.19,206.17,39.26]
[1759150457191,6.29736129,206.19,206.17,39.26]
[1759150457483,6.98736129,206.19,206.17,39.26]
[1759150457689,1.44746557,206.19,206.17,39.26]
[1759150457892,0.69,206.18,206.16,32.73887052]
[1759150458183,6.29745625,206.19,206.16,71.95887052]
[1759150459167,6.98745625,206.19,206.16,71.95887052]
[1759150459887,26.0,206.22,206.16,151.25887052]
[1759150460076,1.44746557,206.21,206.16,156.10940964]
[1759150461891,1.44746557,206.21,206.16,151.25887052]
[1759150462088,4.84919018,206.22,206.16,151.25887052]
[1759150462287,1.44746557,206.2,206.16,151.25887052]
[1759150463195,1.44746557,206.2,206.16,156.1094682]
[1759150465093,0.71,206.24,206.16,168.23597188]
[1759150465094,1.44746557,206.24,206.16,168.23597188]
[1759150467108,6.29628802,206.24,206.16,168.23597188]
[1759150468288,6.29628802,206.24,206.16,302.93597188]
[1759150469397,1.44746557,206.24,206.16,302.93597188]
[1759150470400,4.84848753,206.25,206.16,302.93597188]
[1759150470697,5.55827205,206.26,206.16,302.93597188]
[1759150471097,0.71,206.35,206.2,13.59559401]
[1759150471399,4.51971824,206.38,206.26,13.59559401]
[1759150471694,0.71,206.38,206.27,39.2]
[1759150472110,8.07623148,206.44,206.28,13.59559401]
[1759150472279,8.07623148,206.44,206.29,39.2]
[1759150472280,5.75451988,206.42,206.29,39.2]
[1759150472473,0.71,206.41,206.29,39.2]
[1759150472689,0.71,206.4,206.27,13.59559401]
[1759150472892,0.71,206.39,206.29,13.59559401]
[1759150473094,26.71,206.39,206.3,39.22]
[1759150473287,0.71,206.38,206.31,39.24]
[1759150473484,4.84590036,206.36,206.31,39.24]
[1759150473690,0.71,206.35,206.31,39.24]
[1759150474005,0.71,206.34,206.32,39.24]
[1759150474800,4.8463276,206.35,206.32,39.24]
[1759150474985,4.84589954,206.37,206.32,39.24]
[1759150475387,5.55589954,206.37,206.32,39.24]
[1759150477184,4.84589954,206.37,206.32,39.24]
[1759150477685,5.55589954,206.37,206.32,39.24]
[1759150478701,5.55488281,206.41,206.32,44.08682335]
[1759150478908,26.0,206.4,206.32,44.08682335]
[1759150479205,26.71,206.4,206.32,39.24]
[1759150479396,16.95669909,206.41,206.32,39.24]
[1759150479699,0.71,206.39,206.32,39.24]
[1759150480007,0.71,206.39,206.32,44.08682842]
[1759150480700,4.84496124,206.4,206.32,258.08682842]
[1759150481008,26.0,206.41,206.32,270.20392807]
[1759150481183,0.2,206.42,206.32,270.20392807]
[1759150481379,0.2,206.42,206.33,13.59559401]
[1759150482492,0.2,206.42,206.34,16.96229523]
[1759150482806,5.04449499,206.42,206.34,4.84637006]
[1759150483101,0.71,206.41,206.35,39.08]
[1759150483403,0.71,206.41,206.36,39.08]
[1759150483603,5.04449499,206.42,206.36,118.38]
[1759150483808,0.71,206.4,206.36,118.38]
[1759150484000,0.71,206.39,206.36,118.38]
[1759150484201,0.71,206.38,206.36,79.3]
[1759150484401,26.0,206.39,206.37,39.06]
[1759150484605,4.84543075,206.38,206.36,79.3]
[1759150484797,4.84543075,206.38,206.36,118.36]
[1759150485116,0.71,206.37,206.36,118.36]
[1759150485692,4.84519598,206.39,206.36,118.36]
[1759150486606,5.55519598,206.39,206.36,118.36]
[1759150486805,2.15746557,206.38,206.36,79.3]
[1759150487014,0.71,206.37,206.36,79.3]
[1759150487713,5.55566555,206.37,206.36,79.3]
[1759150489511,5.55566555,206.37,206.35,79.3]
[1759150489714,0.71,206.36,206.35,79.3]
[1759150491210,5.55590036,206.36,206.35,79.3]
[1759150493095,4.84590036,206.36,206.35,79.3]
[1759150493388,4.84566555,206.37,206.35,79.3]
[1759150493591,30.84566555,206.37,206.36,38.94]
[1759150494003,4.84521611,206.39,206.36,38.94]
[1759150495019,4.84521611,206.39,206.36,118.24]
[1759150495521,4.84496124,206.4,206.36,118.24]
[1759150496816,16.95654279,206.41,206.37,38.9]
[1759150497022,17.62654279,206.41,206.37,118.2]
[1759150497316,16.95654279,206.41,206.37,118.2]
[1759150497621,17.62654279,206.41,206.37,118.2]
[1759150498486,27.44746557,206.38,206.31,38.88]
[1759150498702,0.67,206.37,206.31,38.88]
[1759150498998,27.44746557,206.38,206.31,38.88]
[1759150499199,0.67,206.36,206.31,38.88]
[1759150499399,0.67,206.35,206.31,38.88]
[1759150499595,4.84637006,206.34,206.31,38.88]
[1759150500513,4.84601744,206.36,206.31,38.88]
[1759150501314,4.84601744,206.36,206.26,12.12056084]
[1759150501504,5.51601744,206.36,206.27,39.02]
[1759150502312,0.67,206.35,206.24,4.84871993]
[1759150502490,0.67,206.34,206.25,39.0]
[1759150502692,26.67,206.33,206.26,39.0]
[1759150503194,2.11746557,206.32,206.2,42.72947867]
[1759150503421,1.44746557,206.3,206.21,39.02]
[1759150503722,0.67,206.29,206.21,118.32]
[1759150503896,0.67,206.28,206.21,118.32]
[1759150504232,16.96805157,206.27,206.21,118.32]
[1759150504514,16.96805157,206.27,206.21,79.3]
[1759150504737,4.84801473,206.27,206.22,39.02]
[1759150505032,4.84707479,206.31,206.22,39.02]
[1759150505197,6.29454036,206.31,206.22,39.02]
[1759150505532,4.84687979,206.32,206.22,39.02]
[1759150505701,4.84687979,206.32,206.22,118.32]
[1759150506389,4.84687979,206.32,206.23,16.97134267]
[1759150507409,4.84660495,206.33,206.23,16.97134267]
[1759150508714,4.84660495,206.33,206.23,4.84895505]
[1759150509018,4.84660495,206.33,206.22,118.32]
[1759150509019,26.0,206.3,206.22,118.26]
[1759150509238,1.44746557,206.28,206.22,118.26]
[1759150509618,26.67,206.3,206.22,118.26]
[1759150510119,4.84660495,206.33,206.22,118.26]
[1759150510825,5.51635395,206.35,206.24,16.97051977]
[1759150511004,5.51635395,206.35,206.25,38.98]
[1759150511814,5.51635395,206.35,206.26,4.84824978]
[1759150512324,36.44104985,206.37,206.26,230.96887423]
[1759150513216,30.84579755,206.37,206.27,13.59559401]
[1759150513531,30.84579755,206.37,206.28,38.96]
[1759150514122,5.51543279,206.38,206.29,16.9664065]
[1759150514518,5.51543279,206.38,206.28,252.96]
[1759150514821,5.51543279,206.38,206.28,269.92710031]
[1759150515722,16.95900968,206.38,206.28,257.80765102]
[1759150516025,6.2552523,206.37,206.29,38.92]
[1759150516225,5.50590036,206.36,206.29,43.76753713]
[1759150517526,5.50590036,206.36,206.29,4.84753713]
[1759150517717,26.0,206.33,206.2,12.11357689]
[1759150517920,0.66,206.32,206.21,38.88]
[1759150518726,0.66,206.31,206.22,39.02]
[1759150518924,0.66,206.3,206.22,39.02]
[1759150519123,0.66,206.3,206.23,39.02]
[1759150520014,5.50683986,206.32,206.23,39.02]
[1759150520409,30.84662807,206.33,206.23,39.02]
[1759150520732,4.84662807,206.33,206.23,39.02]
[1759150521026,26.0,206.36,206.26,13.59559401]
[1759150521224,13.66621839,206.39,206.28,13.59559401]
[1759150521431,0.68,206.41,206.28,13.59559401]
[1759150521813,4.84500099,206.4,206.28,13.59559401]
[1759150522828,4.84500099,206.4,206.28,227.59559401]
[1759150523010,4.84500099,206.4,206.3,13.59559401]
[1759150523211,4.84500099,206.4,206.31,39.0]
[1759150523414,29.42553961,206.42,206.32,13.59559401]
[1759150523614,26.2,206.42,206.32,13.59559401]
[1759150523922,31.0445141,206.42,206.32,13.59559401]
[1759150524814,0.2,206.42,206.32,13.59559401]
[1759150525017,0.2,206.42,206.34,13.59559401]
[1759150525332,0.2,206.42,206.35,38.98]
[1759150525526,0.2,206.42,206.36,13.59559401]
[1759150526831,0.88,206.42,206.35,38.98]
[1759150527013,5.72451472,206.42,206.35,38.98]
[1759150527326,5.5952523,206.36,206.29,79.3]
[1759150527523,0.68,206.37,206.32,38.94]
[1759150527734,6.2752523,206.37,206.32,38.94]
[1759150527919,5.5952523,206.37,206.32,38.94]
[1759150528330,6.2752523,206.37,206.32,38.94]
[1759150528733,5.5952523,206.37,206.32,38.94]
[1759150529038,5.5952523,206.39,206.33,4.84660495]
[1759150529336,0.68,206.41,206.33,4.84660495]
[1759150529537,5.52482406,206.41,206.33,16.96311733]
[1759150530434,5.52482406,206.41,206.33,4.84660495]
[1759150531217,11.12007636,206.41,206.33,4.84660495]
[1759150533337,4.84519598,206.39,206.33,4.84660495]
[1759150533543,5.52519598,206.39,206.33,4.84660495]
[1759150533731,4.84519598,206.39,206.33,214.0]
[1759150533920,6.2752523,206.38,206.34,38.92]
[1759150534237,0.68,206.37,206.34,38.92]
[1759150534446,0.68,206.36,206.34,38.92]
[1759150534627,0.68,206.36,206.34,118.22]
[1759150534823,0.68,206.35,206.34,118.22]
[1759150535139,6.2752523,206.39,206.34,118.22]
[1759150535323,5.52543075,206.38,206.34,118.22]
[1759150535523,0.68,206.37,206.34,118.22]
[1759150537144,4.84543075,206.38,206.34,118.22]
[1759150537340,5.52543075,206.38,206.34,118.22]
[1759150537516,0.68,206.37,206.34,118.22]
[1759150537720,32.2752523,206.36,206.23,79.3]
[1759150537947,5.5952523,206.33,206.24,38.96]
[1759150538130,0.68,206.32,206.24,38.96]
[1759150538843,4.84707479,206.31,206.24,38.96]
[1759150539921,6.2752523,206.3,206.24,38.96]
[1759150540242,0.68,206.29,206.24,38.96]
[1759150540440,0.68,206.28,206.25,38.94]
[1759150540825,10.44259038,206.3,206.25,38.94]
[1759150541020,11.12259038,206.3,206.23,4.84883916]
[1759150541222,11.12259038,206.3,206.26,38.94]
[1759150541541,0.68,206.29,206.26,38.94]
[1759150541945,0.68,206.28,206.26,38.94]
[1759150542547,4.84733808,206.3,206.26,38.94]
[1759150543250,4.84707479,206.31,206.26,38.94]
[1759150543546,5.52707479,206.31,206.26,38.94]
[1759150544045,0.68,206.3,206.26,38.94]
[1759150544940,4.84707479,206.31,206.26,38.94]
[1759150545145,5.5952523,206.32,206.26,118.24]
[1759150545451,0.68,206.34,206.26,123.08820747]
[1759150545744,5.52656384,206.34,206.26,123.08820747]
[1759150548149,5.5952523,206.28,206.24,38.84]
[1759150548326,0.68,206.27,206.23,38.84]
[1759150548528,0.68,206.26,206.24,38.82]
[1759150549143,4.84848484,206.25,206.24,38.82]
[1759150549645,5.52825427,206.26,206.24,38.82]
[1759150549849,0.68,206.26,206.24,38.82]
[1759150550254,4.84801783,206.27,206.24,38.82]
[1759150550659,5.5952523,206.28,206.24,38.82]
[1759150550952,0.68,206.3,206.24,38.82]
[1759150551254,11.12256483,206.3,206.24,38.82]
[1759150551430,0.71,206.29,206.24,38.82]
[1759150551629,0.71,206.28,206.24,38.82]
[1759150553227,0.71,206.28,206.24,43.66866169]
[1759150553746,5.55780751,206.28,206.24,38.82]
[1759150554461,5.55780751,206.28,206.24,118.12]
[1759150554651,10.44268921,206.3,206.24,122.96867144]
[1759150554853,11.15268921,206.3,206.24,122.96867144]
[1759150555056,12.11568674,206.35,206.24,122.96867144]
[1759150555235,6.3052523,206.33,206.24,122.96867144]
[1759150555861,5.5952523,206.35,206.24,269.79047128]
[1759150556046,6.3052523,206.35,206.24,269.79047128]
[1759150556556,0.71,206.34,206.24,269.79047128]
[1759150557134,4.84660495,206.33,206.24,269.79047128]
[1759150557554,6.3052523,206.32,206.24,257.66867144]
[1759150558955,11.15226413,206.32,206.24,257.66867144]
[1759150559150,5.55701183,206.32,206.24,257.66867144]
[1759150559357,11.15226413,206.32,206.24,269.79047128]
[1759150559558,5.5952523,206.32,206.24,269.79047128]
[1759150560139,10.44141588,206.35,206.24,269.79047128]
[1759150560357,5.5952523,206.35,206.24,269.79047128]
[1759150561351,10.44141176,206.35,206.24,269.79047128]
[1759150564367,10.44141176,206.35,206.24,214.0]
[1759150564578,5.5952523,206.27,206.16,32.73887052]
[1759150564749,26.0,206.19,206.16,32.73887052]
[1759150565070,5.5952523,206.21,206.17,38.86]
[1759150565279,31.5952523,206.22,206.17,38.86]
[1759150565443,5.5952523,206.23,206.17,38.86]
[1759150565642,56.2619043,206.34,206.17,38.86]
[1759150565643,3.21635845,206.28,206.17,38.86]
[1759150565850,3.21635845,206.28,206.17,43.71029109]
[1759150565851,5.5952523,206.28,206.17,43.71029109]
[1759150566066,5.5952523,206.28,206.17,55.83620659]
[1759150566278,6.3052523,206.28,206.17,55.83620659]
[1759150566655,5.5952523,206.25,206.17,43.71029109]
[1759150567762,11.15379736,206.25,206.18,38.84]
[1759150567974,23.27500948,206.25,206.18,38.84]
[1759150568147,5.5952523,206.22,206.18,38.84]
[1759150568353,26.0,206.23,206.18,38.84]
[1759150568766,5.5952523,206.21,206.18,38.84]
[1759150568970,4.84830212,206.26,206.18,38.84]
[1759150569162,4.84830212,206.26,206.16,32.73887052]
[1759150569163,26.0,206.17,206.16,32.73887052]
[1759150569370,26.71,206.17,206.16,32.73887052]
[1759150569678,32.3052523,206.17,206.16,32.73887052]
[1759150570674,5.5952523,206.17,206.16,71.81887052]
[1759150571250,10.4456185,206.17,206.16,71.81887052]
[1759150571469,37.1556185,206.17,206.16,32.73887052]
[1759150574280,35.40329264,206.17,206.16,32.73887052]
[1759150576180,9.40329264,206.17,206.16,4.10285243]
[1759150577467,9.40329264,206.17,206.16,1e-08]
[1759150577966,35.40329264,206.17,206.16,1e-08]
[1759150578182,9.40329264,206.17,206.16,1e-08]
[1759150578361,35.40329264,206.17,206.16,1e-08]
[1759150579376,48.99888665,206.17,206.05,79.4]
[1759150579688,3.84292644,206.07,206.05,79.4]
[1759150579994,4.85083676,206.15,206.05,79.4]
[1759150579995,3.84292644,206.09,206.05,79.4]
[1759150580164,3.84292644,206.15,206.05,218.95314004]
[1759150580971,3.84292644,206.15,206.06,39.04]
[1759150581463,3.84292644,206.18,206.07,13.59559401]
[1759150581664,8.69308092,206.18,206.08,16.98369565]
[1759150583887,20.8184083,206.18,206.07,4.85269882]
[1759150584092,3.84292644,206.15,206.08,39.0]
[1759150584892,4.85015448,206.18,206.09,4.85224901]
[1759150585201,8.69308092,206.18,206.09,4.85224901]
[1759150585494,4.85015448,206.18,206.09,4.85224901]
[1759150585684,8.69308092,206.18,206.09,4.85224901]
[1759150586205,8.69308092,206.18,206.08,39.0]
[1759150586498,0.72,206.17,206.08,253.0]
[1759150586808,26.0,206.15,206.05,0.1]
[1759150587176,3.84292644,206.13,206.05,0.1]
[1759150587778,3.20365631,206.17,206.05,0.1]
[1759150588025,0.72,206.15,206.05,4.95305766]
[1759150588174,0.72,206.14,206.05,4.95305766]
[1759150588377,3.84292644,206.12,206.05,4.95305766]
[1759150588889,0.72,206.13,206.05,4.95305766]
[1759150589476,0.72,206.13,206.06,39.14]